[Event "Titled Tuesday Blitz June 15 2021"]
[White "Liang, Jason"]
[Black "Siniauski, Artsiom"]
[WhiteFideId "30940303"]
[BlackFideId "13512269"]
[WhiteElo "1976"]
[BlackElo "2212"]
[Result "1-0"]
[Round "10"]
[TimeControl "180+1"]
[Date "2021.06.15"]
[WhiteClock "0:00:33"]
[BlackClock "0:00:03"]

1. d3 {[%clk 0:03:00]}  Nf6 {[%clk 0:02:56]} 2. Nf3 {[%clk 0:03:00]}  e6 {[%clk 0:02:55]} 3. e4 {[%clk 0:03:00]}  d5 {[%clk 0:02:55]} 4. Nbd2 {[%clk 0:02:58]}  c5 {[%clk 0:02:55]} 5. g3 {[%clk 0:02:58]}  Nc6 {[%clk 0:02:48]} 6. Bg2 {[%clk 0:02:58]}  g6 {[%clk 0:02:47]} 7. O-O {[%clk 0:02:57]}  Bg7 {[%clk 0:02:47]} 8. Re1 {[%clk 0:02:44]}  O-O {[%clk 0:02:46]} 9. c3 {[%clk 0:02:41]}  a5 {[%clk 0:02:45]} 10. a4 {[%clk 0:02:38]}  b6 {[%clk 0:02:34]} 11. exd5 {[%clk 0:02:28]}  exd5 {[%clk 0:02:31]} 12. Nf1 {[%clk 0:02:23]}  Bb7 {[%clk 0:02:28]} 13. Bf4 {[%clk 0:02:18]}  Re8 {[%clk 0:02:18]} 14. Qd2 {[%clk 0:02:18]}  Qd7 {[%clk 0:02:12]} 15. h4 {[%clk 0:02:08]}  Rxe1 {[%clk 0:02:05]} 16. Rxe1 {[%clk 0:02:09]}  Re8 {[%clk 0:02:06]} 17. Rxe8+ {[%clk 0:02:07]}  Qxe8 {[%clk 0:02:07]} 18. N1h2 {[%clk 0:02:08]}  Nd8 {[%clk 0:02:03]} 19. Qd1 {[%clk 0:02:07]}  Ne6 {[%clk 0:02:02]} 20. Be5 {[%clk 0:02:06]}  Bc6 {[%clk 0:01:57]} 21. b3 {[%clk 0:02:03]}  Nd7 {[%clk 0:01:56]} 22. Bxg7 {[%clk 0:02:03]}  Kxg7 {[%clk 0:01:56]} 23. Ng4 {[%clk 0:01:58]}  h5 {[%clk 0:01:54]} 24. Nge5 {[%clk 0:01:54]}  Nxe5 {[%clk 0:01:53]} 25. Nxe5 {[%clk 0:01:55]}  Nc7 {[%clk 0:01:27]} 26. d4 {[%clk 0:01:50]}  f6 {[%clk 0:01:26]} 27. Nxc6 {[%clk 0:01:43]}  Qxc6 {[%clk 0:01:27]} 28. c4 {[%clk 0:01:43]}  Qd6 {[%clk 0:01:00]} 29. dxc5 {[%clk 0:01:42]}  Qxc5 {[%clk 0:01:00]} 30. cxd5 {[%clk 0:01:42]}  Ne8 {[%clk 0:00:59]} 31. Be4 {[%clk 0:01:34]}  Nd6 {[%clk 0:00:59]} 32. Bc2 {[%clk 0:01:35]}  Qc3 {[%clk 0:00:54]} 33. Qe2 {[%clk 0:01:28]}  Qe5 {[%clk 0:00:53]} 34. Qd3 {[%clk 0:01:27]}  f5 {[%clk 0:00:49]} 35. Kg2 {[%clk 0:01:28]}  Kf6 {[%clk 0:00:47]} 36. Bd1 {[%clk 0:01:28]}  Qe4+ {[%clk 0:00:42]} 37. Qxe4 {[%clk 0:01:20]}  Nxe4 {[%clk 0:00:39]} 38. Kf3 {[%clk 0:01:11]}  Nc3 {[%clk 0:00:39]} 39. Be2 {[%clk 0:01:11]}  Nxd5 {[%clk 0:00:38]} 40. Bc4 {[%clk 0:01:10]}  Ne7 {[%clk 0:00:32]} 41. Kf4 {[%clk 0:01:10]}  Nc6 {[%clk 0:00:30]} 42. Ke3 {[%clk 0:01:05]}  Ke5 {[%clk 0:00:25]} 43. f4+ {[%clk 0:01:05]}  Kf6 {[%clk 0:00:22]} 44. Kd3 {[%clk 0:01:05]}  Ke7 {[%clk 0:00:16]} 45. Kc3 {[%clk 0:01:02]}  Nd8 {[%clk 0:00:13]} 46. Bd5 {[%clk 0:01:02]}  Kd7 {[%clk 0:00:10]} 47. Kd4 {[%clk 0:01:02]}  Kd6 {[%clk 0:00:11]} 48. Kc4 {[%clk 0:01:02]}  Kc7 {[%clk 0:00:08]} 49. Kb5 {[%clk 0:01:02]}  Nb7 {[%clk 0:00:08]} 50. Kc4 {[%clk 0:00:57]}  Nd6+ {[%clk 0:00:08]} 51. Kd4 {[%clk 0:00:57]}  Kd7 {[%clk 0:00:07]} 52. Ke5 {[%clk 0:00:58]}  Ke7 {[%clk 0:00:07]} 53. Bc4 {[%clk 0:00:47]}  Ne8 {[%clk 0:00:02]} 54. Kd5 {[%clk 0:00:44]}  Nf6+ {[%clk 0:00:03]} 55. Kc6 {[%clk 0:00:42]}  Ne4 {[%clk 0:00:04]} 56. Kxb6 {[%clk 0:00:41]}  Nxg3 {[%clk 0:00:04]} 57. Kxa5 {[%clk 0:00:41]}  Kd6 {[%clk 0:00:05]} 58. b4 {[%clk 0:00:41]}  Kc7 {[%clk 0:00:04]} 59. b5 {[%clk 0:00:40]}  Ne4 {[%clk 0:00:04]} 60. b6+ {[%clk 0:00:40]}  Kc6 {[%clk 0:00:01]} 61. Bd5+ {[%clk 0:00:35]}  Kxd5 {[%clk 0:00:02]} 62. b7 {[%clk 0:00:36]}  Nc5 {[%clk 0:00:02]} 63. b8=Q {[%clk 0:00:35]}  Kc4 {[%clk 0:00:03]} 64. Qb4+ {[%clk 0:00:35]}  Kd5 {[%clk 0:00:03]} 65. Kb5 {[%clk 0:00:35]}  Nd7 {[%clk 0:00:03]} 66. Qc4+ {[%clk 0:00:35]}  Kd6 {[%clk 0:00:03]} 67. Qd4+ {[%clk 0:00:35]}  Kc7 {[%clk 0:00:03]} 68. a5 {[%clk 0:00:36]}  Nb8 {[%clk 0:00:03]} 69. Qe5+ {[%clk 0:00:35]}  Kb7 {[%clk 0:00:03]} 70. Qd5+ {[%clk 0:00:35]}  Ka7 {[%clk 0:00:03]} 71. Qf7+ {[%clk 0:00:34]}  Ka8 {[%clk 0:00:04]} 72. a6 {[%clk 0:00:33]}  Nd7 {[%clk 0:00:02]} 73. Qxd7 {[%clk 0:00:32]}  Kb8 {[%clk 0:00:03]} 74. Qb7# {[%clk 0:00:33]} 1-0


[Site "https://www.chess.com"]

[Event "Titled Tuesday Blitz June 15 2021"]
[White "Liyanage, Ranindu Dilshan"]
[Black "Vokhidov, Shamsiddin"]
[WhiteFideId "9915834"]
[BlackFideId "14204223"]
[WhiteElo "1839"]
[BlackElo "2572"]
[Result "0-1"]
[Round "10"]
[TimeControl "180+1"]
[Date "2021.06.15"]
[WhiteClock "0:02:02"]
[BlackClock "0:02:38"]

1. e4 {[%clk 0:03:00]}  c5 {[%clk 0:03:00]} 2. Nf3 {[%clk 0:03:01]}  Nc6 {[%clk 0:03:00]} 3. d4 {[%clk 0:03:01]}  cxd4 {[%clk 0:03:01]} 4. Nxd4 {[%clk 0:03:01]}  Nf6 {[%clk 0:03:02]} 5. Nc3 {[%clk 0:03:02]}  d6 {[%clk 0:03:03]} 6. Bg5 {[%clk 0:03:02]}  Bd7 {[%clk 0:03:03]} 7. Qd2 {[%clk 0:03:02]}  a6 {[%clk 0:03:03]} 8. O-O-O {[%clk 0:03:01]}  e6 {[%clk 0:03:03]} 9. f3 {[%clk 0:02:59]}  Nxd4 {[%clk 0:03:03]} 10. Qxd4 {[%clk 0:02:59]}  h6 {[%clk 0:03:03]} 11. Be3 {[%clk 0:02:56]}  Bc6 {[%clk 0:03:03]} 12. g4 {[%clk 0:02:50]}  d5 {[%clk 0:03:03]} 13. e5 {[%clk 0:02:37]}  Nd7 {[%clk 0:03:02]} 14. f4 {[%clk 0:02:37]}  Bc5 {[%clk 0:03:02]} 15. Qd2 {[%clk 0:02:38]}  d4 {[%clk 0:02:54]} 16. Bxd4 {[%clk 0:02:36]}  Bxd4 {[%clk 0:02:55]} 17. Bg2 {[%clk 0:02:20]}  Bxc3 {[%clk 0:02:52]} 18. bxc3 {[%clk 0:02:20]}  Bxg2 {[%clk 0:02:51]} 19. Qxg2 {[%clk 0:02:21]}  Qc7 {[%clk 0:02:45]} 20. f5 {[%clk 0:02:21]}  O-O-O {[%clk 0:02:43]} 21. fxe6 {[%clk 0:02:02]}  fxe6 {[%clk 0:02:44]} 22. Rde1 {[%clk 0:02:02]}  Qxc3 {[%clk 0:02:38]} 0-1


[Site "https://www.chess.com"]

[Event "Titled Tuesday Blitz June 15 2021"]
[White "LogoCzar"]
[Black "Suvorov, Alexander"]
[BlackFideId "12977063"]
[WhiteElo "2359"]
[BlackElo "2221"]
[Result "1/2-1/2"]
[Round "10"]
[TimeControl "180+1"]
[Date "2021.06.15"]
[WhiteClock "0:01:56"]
[BlackClock "0:00:44"]

1. e4 {[%clk 0:03:00]}  c5 {[%clk 0:02:59]} 2. Nf3 {[%clk 0:02:59]}  e6 {[%clk 0:02:59]} 3. d4 {[%clk 0:02:59]}  cxd4 {[%clk 0:03:00]} 4. Nxd4 {[%clk 0:02:59]}  Nc6 {[%clk 0:03:01]} 5. Nc3 {[%clk 0:02:59]}  Qc7 {[%clk 0:03:01]} 6. Be3 {[%clk 0:02:59]}  a6 {[%clk 0:03:01]} 7. Qf3 {[%clk 0:02:59]}  Nf6 {[%clk 0:03:01]} 8. O-O-O {[%clk 0:02:57]}  Rb8 {[%clk 0:03:00]} 9. Be2 {[%clk 0:02:55]}  Bb4 {[%clk 0:02:59]} 10. Nxc6 {[%clk 0:02:53]}  bxc6 {[%clk 0:03:00]} 11. Bd4 {[%clk 0:02:47]}  Bd6 {[%clk 0:02:46]} 12. Bxf6 {[%clk 0:02:35]}  Bf4+ {[%clk 0:02:45]} 13. Kb1 {[%clk 0:02:31]}  gxf6 {[%clk 0:02:44]} 14. g3 {[%clk 0:02:25]}  Be5 {[%clk 0:02:43]} 15. Qe3 {[%clk 0:02:25]}  Qa5 {[%clk 0:02:41]} 16. Rd3 {[%clk 0:02:21]}  d5 {[%clk 0:02:18]} 17. exd5 {[%clk 0:02:17]}  cxd5 {[%clk 0:02:16]} 18. f4 {[%clk 0:02:11]}  d4 {[%clk 0:02:06]} 19. Rxd4 {[%clk 0:02:10]}  Bxd4 {[%clk 0:01:30]} 20. Qxd4 {[%clk 0:02:10]}  Ke7 {[%clk 0:01:23]} 21. Ne4 {[%clk 0:02:06]}  Rd8 {[%clk 0:01:02]} 22. Qxf6+ {[%clk 0:02:04]}  Ke8 {[%clk 0:01:00]} 23. Bh5 {[%clk 0:02:01]}  Qxh5 {[%clk 0:00:55]} 24. Qh8+ {[%clk 0:01:57]}  Ke7 {[%clk 0:00:51]} 25. Qf6+ {[%clk 0:01:57]}  Ke8 {[%clk 0:00:51]} 26. Qh8+ {[%clk 0:01:57]}  Ke7 {[%clk 0:00:44]} 27. Qf6+ {[%clk 0:01:56]}  Ke8 {[%clk 0:00:44]} 1/2-1/2


[Site "https://www.chess.com"]

[Event "Titled Tuesday Blitz June 15 2021"]
[White "Mezentsev, Ivan"]
[Black "Karpov, Vadim"]
[WhiteFideId "13706195"]
[BlackFideId "4155025"]
[WhiteElo "2295"]
[BlackElo "2290"]
[Result "1/2-1/2"]
[Round "10"]
[TimeControl "180+1"]
[Date "2021.06.15"]
[WhiteClock "0:00:41"]
[BlackClock "0:01:05"]

1. d4 {[%clk 0:03:00]}  d5 {[%clk 0:02:59]} 2. Nf3 {[%clk 0:03:00]}  Nf6 {[%clk 0:02:58]} 3. Bf4 {[%clk 0:03:01]}  e6 {[%clk 0:02:58]} 4. e3 {[%clk 0:03:01]}  Bd6 {[%clk 0:02:59]} 5. Bg3 {[%clk 0:03:01]}  c5 {[%clk 0:02:59]} 6. Nbd2 {[%clk 0:03:01]}  Qc7 {[%clk 0:02:58]} 7. dxc5 {[%clk 0:02:56]}  Qxc5 {[%clk 0:02:56]} 8. Bd3 {[%clk 0:02:55]}  Nbd7 {[%clk 0:02:52]} 9. Qe2 {[%clk 0:02:53]}  b6 {[%clk 0:02:44]} 10. e4 {[%clk 0:02:52]}  Bxg3 {[%clk 0:02:37]} 11. hxg3 {[%clk 0:02:51]}  dxe4 {[%clk 0:02:34]} 12. Bxe4 {[%clk 0:02:49]}  Rb8 {[%clk 0:02:27]} 13. O-O-O {[%clk 0:02:46]}  Bb7 {[%clk 0:02:19]} 14. Bxb7 {[%clk 0:02:43]}  Rxb7 {[%clk 0:02:20]} 15. Ne4 {[%clk 0:02:37]}  Nxe4 {[%clk 0:02:16]} 16. Qxe4 {[%clk 0:02:38]}  Rc7 {[%clk 0:02:16]} 17. Rxh7 {[%clk 0:02:22]}  Qxc2+ {[%clk 0:02:16]} 18. Qxc2 {[%clk 0:02:21]}  Rxc2+ {[%clk 0:02:15]} 19. Kxc2 {[%clk 0:02:21]}  Rxh7 {[%clk 0:02:16]} 20. Rd6 {[%clk 0:02:08]}  Rh5 {[%clk 0:02:10]} 21. b4 {[%clk 0:02:04]}  Ne5 {[%clk 0:02:06]} 22. Nxe5 {[%clk 0:01:46]}  Rxe5 {[%clk 0:02:07]} 23. Kd2 {[%clk 0:01:46]}  Ke7 {[%clk 0:02:06]} 24. Rd4 {[%clk 0:01:45]}  a5 {[%clk 0:02:02]} 25. a3 {[%clk 0:01:44]}  axb4 {[%clk 0:02:01]} 26. axb4 {[%clk 0:01:43]}  g5 {[%clk 0:01:58]} 27. g4 {[%clk 0:01:41]}  f5 {[%clk 0:01:56]} 28. g3 {[%clk 0:01:37]}  fxg4 {[%clk 0:01:51]} 29. Rxg4 {[%clk 0:01:36]}  Rf5 {[%clk 0:01:52]} 30. Ke3 {[%clk 0:01:34]}  Re5+ {[%clk 0:01:39]} 31. Re4 {[%clk 0:01:34]}  Rd5 {[%clk 0:01:38]} 32. Kf3 {[%clk 0:01:25]}  Rd2 {[%clk 0:01:34]} 33. Kg4 {[%clk 0:01:19]}  Rxf2 {[%clk 0:01:30]} 34. Kxg5 {[%clk 0:01:19]}  Rf5+ {[%clk 0:01:24]} 35. Kg6 {[%clk 0:01:16]}  Rf6+ {[%clk 0:01:24]} 36. Kg5 {[%clk 0:01:16]}  Rf5+ {[%clk 0:01:24]} 37. Kh4 {[%clk 0:01:16]}  Kf6 {[%clk 0:01:22]} 38. g4 {[%clk 0:01:14]}  Rd5 {[%clk 0:01:19]} 39. Rf4+ {[%clk 0:01:11]}  Kg6 {[%clk 0:01:18]} 40. Kg3 {[%clk 0:01:02]}  Rd3+ {[%clk 0:01:16]} 41. Rf3 {[%clk 0:01:01]}  Rd4 {[%clk 0:01:16]} 42. Rf4 {[%clk 0:00:58]}  Rd3+ {[%clk 0:01:14]} 43. Kf2 {[%clk 0:00:58]}  e5 {[%clk 0:01:11]} 44. Rf5 {[%clk 0:00:49]}  Rd4 {[%clk 0:01:10]} 45. b5 {[%clk 0:00:49]}  Rf4+ {[%clk 0:01:06]} 46. Rxf4 {[%clk 0:00:44]}  exf4 {[%clk 0:01:06]} 47. Ke2 {[%clk 0:00:42]}  Kf6 {[%clk 0:01:05]} 48. Kf2 {[%clk 0:00:41]}  Kg6 {[%clk 0:01:05]} 49. Kg2 {[%clk 0:00:41]}  Kf6 {[%clk 0:01:05]} 50. Kf2 {[%clk 0:00:41]}  Kg6 {[%clk 0:01:05]} 1/2-1/2


[Site "https://www.chess.com"]

[Event "Titled Tuesday Blitz June 15 2021"]
[White "Mirzoev, Azer"]
[Black "Khanin, Semen"]
[WhiteFideId "13400304"]
[BlackFideId "4111990"]
[WhiteElo "2525"]
[BlackElo "2521"]
[Result "1-0"]
[Round "10"]
[TimeControl "180+1"]
[Date "2021.06.15"]
[WhiteClock "0:00:56"]
[BlackClock "0:00:49"]

1. d4 {[%clk 0:02:59]}  g6 {[%clk 0:02:55]} 2. Nf3 {[%clk 0:03:00]}  Bg7 {[%clk 0:02:55]} 3. g3 {[%clk 0:03:00]}  b6 {[%clk 0:02:54]} 4. Bg2 {[%clk 0:03:00]}  Bb7 {[%clk 0:02:55]} 5. O-O {[%clk 0:03:01]}  e6 {[%clk 0:02:54]} 6. c4 {[%clk 0:03:00]}  Ne7 {[%clk 0:02:53]} 7. b3 {[%clk 0:03:00]}  O-O {[%clk 0:02:52]} 8. Bb2 {[%clk 0:02:57]}  c5 {[%clk 0:02:52]} 9. Qd2 {[%clk 0:02:43]}  cxd4 {[%clk 0:02:48]} 10. Bxd4 {[%clk 0:02:42]}  d5 {[%clk 0:02:44]} 11. Bxg7 {[%clk 0:02:41]}  Kxg7 {[%clk 0:02:45]} 12. Rd1 {[%clk 0:02:36]}  Nbc6 {[%clk 0:02:40]} 13. Na3 {[%clk 0:02:33]}  Qd6 {[%clk 0:02:28]} 14. Nb5 {[%clk 0:02:29]}  Qb4 {[%clk 0:02:23]} 15. Qb2+ {[%clk 0:02:21]}  Kg8 {[%clk 0:02:18]} 16. a3 {[%clk 0:02:19]}  Qc5 {[%clk 0:02:08]} 17. b4 {[%clk 0:02:17]}  Qxc4 {[%clk 0:02:05]} 18. Nd6 {[%clk 0:02:17]}  Qg4 {[%clk 0:01:52]} 19. Nxb7 {[%clk 0:02:14]}  Nf5 {[%clk 0:01:29]} 20. Rac1 {[%clk 0:02:04]}  Nfe7 {[%clk 0:01:16]} 21. Ne5 {[%clk 0:01:41]}  Nxe5 {[%clk 0:01:14]} 22. Qxe5 {[%clk 0:01:42]}  Rac8 {[%clk 0:01:11]} 23. Nd6 {[%clk 0:01:39]}  Rc6 {[%clk 0:01:10]} 24. Bf3 {[%clk 0:01:29]}  f6 {[%clk 0:01:03]} 25. Qe3 {[%clk 0:01:16]}  Qh3 {[%clk 0:01:00]} 26. Rxc6 {[%clk 0:01:10]}  Nxc6 {[%clk 0:00:59]} 27. Bg2 {[%clk 0:00:57]}  Qg4 {[%clk 0:00:49]} 28. h3 {[%clk 0:00:56]} 1-0


[Site "https://www.chess.com"]

[Event "Titled Tuesday Blitz June 15 2021"]
[White "Murzin, Volodar"]
[Black "Vlassov, Nikolai"]
[WhiteFideId "44155573"]
[BlackFideId "4103360"]
[WhiteElo "2541"]
[BlackElo "2407"]
[Result "1-0"]
[Round "10"]
[TimeControl "180+1"]
[Date "2021.06.15"]
[WhiteClock "0:01:06"]
[BlackClock "0:00:45"]

1. e4 {[%clk 0:03:00]}  Nc6 {[%clk 0:02:57]} 2. Nf3 {[%clk 0:02:50]}  d5 {[%clk 0:02:57]} 3. exd5 {[%clk 0:02:50]}  Qxd5 {[%clk 0:02:56]} 4. Nc3 {[%clk 0:02:50]}  Qa5 {[%clk 0:02:56]} 5. h3 {[%clk 0:02:41]}  Nh6 {[%clk 0:02:56]} 6. d4 {[%clk 0:02:39]}  Bf5 {[%clk 0:02:48]} 7. Bb5 {[%clk 0:02:37]}  O-O-O {[%clk 0:02:33]} 8. Bxc6 {[%clk 0:02:35]}  bxc6 {[%clk 0:02:33]} 9. Qe2 {[%clk 0:02:30]}  e6 {[%clk 0:02:30]} 10. O-O {[%clk 0:02:24]}  Bb4 {[%clk 0:02:27]} 11. Ne5 {[%clk 0:02:19]}  Kb7 {[%clk 0:02:12]} 12. a3 {[%clk 0:02:05]}  Bd6 {[%clk 0:02:02]} 13. b4 {[%clk 0:01:43]}  Qa6 {[%clk 0:01:53]} 14. b5 {[%clk 0:01:43]}  cxb5 {[%clk 0:01:52]} 15. Nxb5 {[%clk 0:01:31]}  Bxe5 {[%clk 0:01:47]} 16. Rb1 {[%clk 0:01:28]}  Kc6 {[%clk 0:01:24]} 17. Qxe5 {[%clk 0:01:19]}  Qa5 {[%clk 0:00:51]} 18. Bd2 {[%clk 0:01:10]}  Qxd2 {[%clk 0:00:45]} 19. Qxc7+ {[%clk 0:01:05]}  Kd5 {[%clk 0:00:46]} 20. Qc5+ {[%clk 0:01:06]}  Ke4 {[%clk 0:00:45]} 21. Qe5# {[%clk 0:01:06]} 1-0


[Site "https://www.chess.com"]

[Event "Titled Tuesday Blitz June 15 2021"]
[White "Omariev, Maksim"]
[Black "Vaishali, Rameshbabu"]
[WhiteFideId "4193423"]
[BlackFideId "5091756"]
[WhiteElo "2382"]
[BlackElo "2313"]
[Result "0-1"]
[Round "10"]
[TimeControl "180+1"]
[Date "2021.06.15"]
[WhiteClock "0:00:06"]
[BlackClock "0:00:10"]

1. g4 {[%clk 0:03:00]}  c5 {[%clk 0:02:53]} 2. Bg2 {[%clk 0:03:01]}  Nc6 {[%clk 0:02:53]} 3. c4 {[%clk 0:03:00]}  d6 {[%clk 0:02:53]} 4. g5 {[%clk 0:02:59]}  h6 {[%clk 0:02:53]} 5. h4 {[%clk 0:02:57]}  g6 {[%clk 0:02:51]} 6. Nc3 {[%clk 0:02:56]}  Bg7 {[%clk 0:02:51]} 7. d3 {[%clk 0:02:56]}  Be6 {[%clk 0:02:37]} 8. h5 {[%clk 0:02:55]}  gxh5 {[%clk 0:02:33]} 9. Rxh5 {[%clk 0:02:53]}  Qd7 {[%clk 0:02:33]} 10. Nf3 {[%clk 0:02:41]}  O-O-O {[%clk 0:02:32]} 11. Be3 {[%clk 0:02:18]}  Bg4 {[%clk 0:02:13]} 12. Rh1 {[%clk 0:02:12]}  hxg5 {[%clk 0:02:13]} 13. Rxh8 {[%clk 0:02:09]}  Bxh8 {[%clk 0:02:14]} 14. Nxg5 {[%clk 0:02:06]}  Bd4 {[%clk 0:02:05]} 15. Qd2 {[%clk 0:01:48]}  Nh6 {[%clk 0:01:36]} 16. O-O-O {[%clk 0:01:42]}  f6 {[%clk 0:01:35]} 17. Nge4 {[%clk 0:01:20]}  Nf5 {[%clk 0:01:34]} 18. Bxd4 {[%clk 0:01:12]}  Nfxd4 {[%clk 0:01:22]} 19. Rg1 {[%clk 0:01:02]}  Kb8 {[%clk 0:01:09]} 20. Kb1 {[%clk 0:00:52]}  a6 {[%clk 0:01:08]} 21. Ng3 {[%clk 0:00:39]}  Rh8 {[%clk 0:01:07]} 22. f3 {[%clk 0:00:23]}  Be6 {[%clk 0:00:58]} 23. e3 {[%clk 0:00:23]}  Nf5 {[%clk 0:00:55]} 24. Nxf5 {[%clk 0:00:17]}  Bxf5 {[%clk 0:00:56]} 25. f4 {[%clk 0:00:16]}  Nb4 {[%clk 0:00:34]} 26. Be4 {[%clk 0:00:12]}  Ka7 {[%clk 0:00:31]} 27. a3 {[%clk 0:00:12]}  Nc6 {[%clk 0:00:29]} 28. Qg2 {[%clk 0:00:12]}  Bxe4 {[%clk 0:00:27]} 29. Qxe4 {[%clk 0:00:13]}  Rh2 {[%clk 0:00:26]} 30. Rg7 {[%clk 0:00:13]}  Qh3 {[%clk 0:00:21]} 31. d4 {[%clk 0:00:03]}  Qf1+ {[%clk 0:00:19]} 32. Ka2 {[%clk 0:00:02]}  Qxc4+ {[%clk 0:00:19]} 33. Ka1 {[%clk 0:00:03]}  cxd4 {[%clk 0:00:18]} 34. exd4 {[%clk 0:00:03]}  Nxd4 {[%clk 0:00:18]} 35. Rxe7 {[%clk 0:00:03]}  Nb3+ {[%clk 0:00:16]} 36. Ka2 {[%clk 0:00:03]}  Nc1+ {[%clk 0:00:14]} 37. Kb1 {[%clk 0:00:03]}  Qxe4+ {[%clk 0:00:11]} 38. Nxe4 {[%clk 0:00:02]}  Nd3 {[%clk 0:00:11]} 39. Nxd6 {[%clk 0:00:02]}  Rxb2+ {[%clk 0:00:10]} 40. Ka1 {[%clk 0:00:03]}  Rb3 {[%clk 0:00:09]} 41. Ne4 {[%clk 0:00:02]}  Rxa3+ {[%clk 0:00:06]} 42. Kb1 {[%clk 0:00:03]}  Ra4 {[%clk 0:00:06]} 43. f5 {[%clk 0:00:01]}  Ra5 {[%clk 0:00:02]} 44. Nd6 {[%clk 0:00:02]}  Rd5 {[%clk 0:00:02]} 45. Nxb7 {[%clk 0:00:01]}  Rb5+ {[%clk 0:00:02]} 46. Kc2 {[%clk 0:00:01]}  Rxb7 {[%clk 0:00:03]} 47. Re6 {[%clk 0:00:01]}  Nb4+ {[%clk 0:00:02]} 48. Kd2 {[%clk 0:00:01]}  Rb6 {[%clk 0:00:03]} 49. Re7+ {[%clk 0:00:02]}  Kb8 {[%clk 0:00:04]} 50. Ke2 {[%clk 0:00:02]}  a5 {[%clk 0:00:04]} 51. Re8+ {[%clk 0:00:02]}  Kb7 {[%clk 0:00:04]} 52. Re7+ {[%clk 0:00:03]}  Ka6 {[%clk 0:00:05]} 53. Re8 {[%clk 0:00:03]}  a4 {[%clk 0:00:05]} 54. Ra8+ {[%clk 0:00:04]}  Kb5 {[%clk 0:00:06]} 55. Kd2 {[%clk 0:00:04]}  Ra6 {[%clk 0:00:06]} 56. Rb8+ {[%clk 0:00:04]}  Rb6 {[%clk 0:00:06]} 57. Ra8 {[%clk 0:00:04]}  Rc6 {[%clk 0:00:06]} 58. Rb8+ {[%clk 0:00:03]}  Kc4 {[%clk 0:00:06]} 59. Ra8 {[%clk 0:00:04]}  Kb3 {[%clk 0:00:06]} 60. Rh8 {[%clk 0:00:04]}  a3 {[%clk 0:00:07]} 61. Rh3+ {[%clk 0:00:04]}  Kb2 {[%clk 0:00:07]} 62. Rh2 {[%clk 0:00:04]}  Rc2+ {[%clk 0:00:07]} 63. Ke3 {[%clk 0:00:05]}  Rxh2 {[%clk 0:00:08]} 64. Kf4 {[%clk 0:00:05]}  a2 {[%clk 0:00:09]} 65. Kg3 {[%clk 0:00:06]}  a1=Q {[%clk 0:00:10]} 66. Kg4 {[%clk 0:00:06]}  Qf1 {[%clk 0:00:09]} 67. Kg3 {[%clk 0:00:06]}  Qf2+ {[%clk 0:00:09]} 68. Kg4 {[%clk 0:00:06]}  Rh4# {[%clk 0:00:10]} 0-1


[Site "https://www.chess.com"]

[Event "Titled Tuesday Blitz June 15 2021"]
[White "Perez Perez, Gabriel"]
[Black "Boyer, Mahel"]
[WhiteFideId "32089147"]
[BlackFideId "45102422"]
[WhiteElo "2037"]
[BlackElo "2325"]
[Result "0-1"]
[Round "10"]
[TimeControl "180+1"]
[Date "2021.06.15"]
[WhiteClock "0:00:01"]
[BlackClock "0:00:25"]

1. Nf3 {[%clk 0:03:00]}  g6 {[%clk 0:03:00]} 2. g3 {[%clk 0:02:54]}  Bg7 {[%clk 0:03:01]} 3. Bg2 {[%clk 0:02:53]}  Nf6 {[%clk 0:03:02]} 4. O-O {[%clk 0:02:53]}  O-O {[%clk 0:03:03]} 5. c4 {[%clk 0:02:52]}  d6 {[%clk 0:03:04]} 6. d4 {[%clk 0:02:51]}  c6 {[%clk 0:03:05]} 7. Nc3 {[%clk 0:02:50]}  Qa5 {[%clk 0:03:06]} 8. e4 {[%clk 0:02:48]}  Qh5 {[%clk 0:03:05]} 9. e5 {[%clk 0:02:49]}  dxe5 {[%clk 0:03:04]} 10. Nxe5 {[%clk 0:02:49]}  Qxd1 {[%clk 0:03:03]} 11. Rxd1 {[%clk 0:02:50]}  Nbd7 {[%clk 0:03:03]} 12. Nxd7 {[%clk 0:02:34]}  Bxd7 {[%clk 0:03:04]} 13. Bf4 {[%clk 0:02:34]}  Nh5 {[%clk 0:03:03]} 14. Be3 {[%clk 0:02:31]}  Rad8 {[%clk 0:03:01]} 15. d5 {[%clk 0:02:28]}  a6 {[%clk 0:02:59]} 16. Bb6 {[%clk 0:01:18]}  Rde8 {[%clk 0:02:43]} 17. dxc6 {[%clk 0:01:15]}  Bxc6 {[%clk 0:02:41]} 18. Bxc6 {[%clk 0:01:15]}  bxc6 {[%clk 0:02:42]} 19. Rd7 {[%clk 0:01:12]}  Rb8 {[%clk 0:02:22]} 20. c5 {[%clk 0:01:10]}  Bxc3 {[%clk 0:01:35]} 21. bxc3 {[%clk 0:01:11]}  Nf6 {[%clk 0:01:36]} 22. Rc7 {[%clk 0:00:54]}  Rfc8 {[%clk 0:01:23]} 23. Rxe7 {[%clk 0:00:40]}  Nd5 {[%clk 0:01:18]} 24. Rd7 {[%clk 0:00:40]}  Nxc3 {[%clk 0:01:04]} 25. Ra7 {[%clk 0:00:22]}  Ra8 {[%clk 0:01:05]} 26. Rb7 {[%clk 0:00:17]}  Rab8 {[%clk 0:00:59]} 27. Ra7 {[%clk 0:00:17]}  Ra8 {[%clk 0:00:59]} 28. Rb7 {[%clk 0:00:17]}  Nd5 {[%clk 0:00:56]} 29. a4 {[%clk 0:00:14]}  Re8 {[%clk 0:00:55]} 30. Rd7 {[%clk 0:00:11]}  h5 {[%clk 0:00:49]} 31. Rd6 {[%clk 0:00:10]}  Rac8 {[%clk 0:00:48]} 32. a5 {[%clk 0:00:10]}  h4 {[%clk 0:00:48]} 33. Rd1 {[%clk 0:00:06]}  h3 {[%clk 0:00:48]} 34. Kf1 {[%clk 0:00:06]}  Re4 {[%clk 0:00:45]} 35. R1xd5 {[%clk 0:00:04]}  cxd5 {[%clk 0:00:46]} 36. Rxd5 {[%clk 0:00:05]}  Rce8 {[%clk 0:00:45]} 37. Rd1 {[%clk 0:00:04]}  Rc4 {[%clk 0:00:45]} 38. Re1 {[%clk 0:00:03]}  Rxe1+ {[%clk 0:00:40]} 39. Kxe1 {[%clk 0:00:04]}  Kf8 {[%clk 0:00:41]} 40. Kd2 {[%clk 0:00:03]}  Ke7 {[%clk 0:00:40]} 41. Ke3 {[%clk 0:00:02]}  Ke6 {[%clk 0:00:40]} 42. Kf3 {[%clk 0:00:02]}  f5 {[%clk 0:00:40]} 43. Ke2 {[%clk 0:00:01]}  Kd5 {[%clk 0:00:39]} 44. Kf3 {[%clk 0:00:01]}  g5 {[%clk 0:00:39]} 45. Ke2 {[%clk 0:00:01]}  Rc2+ {[%clk 0:00:37]} 46. Ke3 {[%clk 0:00:01]}  g4 {[%clk 0:00:32]} 47. Ba7 {[%clk 0:00:01]}  Ke5 {[%clk 0:00:31]} 48. Bb6 {[%clk 0:00:01]}  Kd5 {[%clk 0:00:28]} 49. Ba7 {[%clk 0:00:01]}  Rc3+ {[%clk 0:00:25]} 50. Ke2 {[%clk 0:00:01]}  Ke4 {[%clk 0:00:24]} 51. Bb6 {[%clk 0:00:01]}  Rc2+ {[%clk 0:00:25]} 52. Ke1 {[%clk 0:00:01]}  Kd3 {[%clk 0:00:24]} 53. Kd1 {[%clk 0:00:01]}  Rxf2 {[%clk 0:00:24]} 54. Kc1 {[%clk 0:00:01]}  Rxh2 {[%clk 0:00:23]} 55. c6 {[%clk 0:00:01]}  Rc2+ {[%clk 0:00:24]} 56. Kb1 {[%clk 0:00:01]}  Rxc6 {[%clk 0:00:25]} 0-1


[Site "https://www.chess.com"]